Workbook

Sheet NGC2366
B3: ρ(r) = ρ0sech^8( r/ r_c)
A6: M(R) =4πρ0,r_c^3 ·I(u) | C6: u = R/r_c | D6: I(u) = Integrale de 0 à u de ( x^2sech^8(x)dx | H6: V_TURI(R) = Racine (G·M(R)/R)
H8: G= | I8: =4.3009*POWER(10,-6) -> 4.3009e-06 | J8: 10^-6,KPC,(Km/s)^2/Mo
A9: NGC2366 | B9: R_max= | C9: =A40 -> 6.06 | D9: V_obs(R_max)= | E9: =B40 -> 49.4
B10: M_totale= | C10: V_obs^2(R_max).R_max/G= | E10: =E9*E9*C9/I8 -> 3438485340 | F10: Mo | G10: I(infini)= | H10: 0.0648738184
G11: M(R) = racine(G,M(R)/R)
B12: r_c=R_max= | C12: =C9 -> 6.06 | D12: ρ0=M_tot/4.π.r_c^3.I(infini)= | E12: =E10/(POWER(C12,3)*4*3.14159*H10) -> 18952667.64 | F12: Mo/kpc^3 | G12: π= | H12: 3.14159
A14: R | B14: V_obs | C14: Incer V_obs | D14: u=R/r-c | E14: I(U) par table | F14: M(R) | G14: V_TURI | H14: Erreur % | J14: calculs intermediaires de I(u)
A15: 0.12 | B15: 4.2 | C15: 3.15 | D15: =A15/$C$12 -> 0.0198019802 | E15: =N15*K15+O15*M15 -> 2.946962376e-06 | F15: =4*$H$12*$E$12*POWER($C$12,3)*E15 -> 156196.8631 | G15: =POWER($I$8*F15/A15,0.5) -> 2.366057002 | H15: =ROUND(ABS((B15-G15)/B15)*100,2) -> 43.67 | J15: =INDEX(Integrale!$H$3:$H$502,MATCH('NGC2366'!D15,Integrale!$H$3:$H$502,1)) -> 0.01 | K15: =INDEX(Integrale!$I$3:$I$502,MATCH('NGC2366'!D15,Integrale!$H$3:$H$502,1)) -> 4.998e-07 | L15: =INDEX(Integrale!$H$3:$H$502,MATCH('NGC2366'!D15,Integrale!$H$3:$H$502,1)+1) -> 0.02 | M15: =INDEX(Integrale!$I$3:$I$502,MATCH('NGC2366'!D15,Integrale!$H$3:$H$502,1)+1) -> 2.9964e-06 | N15: =(L15-D15)/(L15-J15) -> 0.0198019802 | O15: =(D15-J15)/(L15-J15) -> 0.9801980198
A16: 0.36 | B16: 9.41 | C16: 1.83 | D16: =A16/$C$12 -> 0.05940594059 | E16: =N16*K16+O16*M16 -> 7.056378218e-05 | F16: =4*$H$12*$E$12*POWER($C$12,3)*E16 -> 3740068.591 | G16: 6.684488887 | H16: 28.96 | J16: =INDEX(Integrale!$H$3:$H$502,MATCH('NGC2366'!D16,Integrale!$H$3:$H$502,1)) -> 0.05 | K16: =INDEX(Integrale!$I$3:$I$502,MATCH('NGC2366'!D16,Integrale!$H$3:$H$502,1)) -> 4.22345e-05 | L16: =INDEX(Integrale!$H$3:$H$502,MATCH('NGC2366'!D16,Integrale!$H$3:$H$502,1)+1) -> 0.06 | M16: =INDEX(Integrale!$I$3:$I$502,MATCH('NGC2366'!D16,Integrale!$H$3:$H$502,1)+1) -> 7.2353e-05 | N16: =(L16-D16)/(L16-J16) -> 0.05940594059 | O16: 0.9405940594
A17: 0.59 | B17: 15.3 | C17: 1.37 | D17: 0.09735973597 | E17: 0.0003039562251 | F17: 16110490.33 | G17: 10.83697436 | H17: 29.17 | J17: =INDEX(Integrale!$H$3:$H$502,MATCH('NGC2366'!D17,Integrale!$H$3:$H$502,1)) -> 0.09 | K17: =INDEX(Integrale!$I$3:$I$502,MATCH('NGC2366'!D17,Integrale!$H$3:$H$502,1)) -> 0.0002397401 | L17: =INDEX(Integrale!$H$3:$H$502,MATCH('NGC2366'!D17,Integrale!$H$3:$H$502,1)+1) -> 0.1 | M17: =INDEX(Integrale!$I$3:$I$502,MATCH('NGC2366'!D17,Integrale!$H$3:$H$502,1)+1) -> 0.0003269934 | N17: 0.2640264026 | O17: 0.7359735974
A18: 0.83 | B18: 18.4 | C18: 1.64 | D18: 0.1369636964 | E18: 0.0008234021997 | F18: 43642511.92 | G18: 15.03818752 | H18: 18.27 | J18: =INDEX(Integrale!$H$3:$H$502,MATCH('NGC2366'!D18,Integrale!$H$3:$H$502,1)) -> 0.13 | K18: =INDEX(Integrale!$I$3:$I$502,MATCH('NGC2366'!D18,Integrale!$H$3:$H$502,1)) -> 0.0007052805 | L18: =INDEX(Integrale!$H$3:$H$502,MATCH('NGC2366'!D18,Integrale!$H$3:$H$502,1)+1) -> 0.14 | M18: =INDEX(Integrale!$I$3:$I$502,MATCH('NGC2366'!D18,Integrale!$H$3:$H$502,1)+1) -> 0.0008749055 | N18: 0.303630363 | O18: 0.696369637
A19: 1.07 | B19: 23.4 | C19: 2.08 | D19: 0.1765676568 | E19: 0.00170933915 | F19: 90599532.36 | G19: 19.08318065 | H19: 18.45 | J19: =INDEX(Integrale!$H$3:$H$502,MATCH('NGC2366'!D19,Integrale!$H$3:$H$502,1)) -> 0.17 | K19: =INDEX(Integrale!$I$3:$I$502,MATCH('NGC2366'!D19,Integrale!$H$3:$H$502,1)) -> 0.001531222 | L19: =INDEX(Integrale!$H$3:$H$502,MATCH('NGC2366'!D19,Integrale!$H$3:$H$502,1)+1) -> 0.18 | M19: =INDEX(Integrale!$I$3:$I$502,MATCH('NGC2366'!D19,Integrale!$H$3:$H$502,1)+1) -> 0.0018024255 | N19: 0.3432343234 | O19: 0.6567656766
A20: 1.31 | B20: 28.1 | C20: 2.46 | D20: 0.2161716172 | E20: 0.003021336174 | F20: 160138872.6 | G20: 22.92938508 | H20: 18.4 | J20: =INDEX(Integrale!$H$3:$H$502,MATCH('NGC2366'!D20,Integrale!$H$3:$H$502,1)) -> 0.21 | K20: =INDEX(Integrale!$I$3:$I$502,MATCH('NGC2366'!D20,Integrale!$H$3:$H$502,1)) -> 0.0027838579 | L20: =INDEX(Integrale!$H$3:$H$502,MATCH('NGC2366'!D20,Integrale!$H$3:$H$502,1)+1) -> 0.22 | M20: =INDEX(Integrale!$I$3:$I$502,MATCH('NGC2366'!D20,Integrale!$H$3:$H$502,1)+1) -> 0.0031686489 | N20: 0.3828382838 | O20: 0.6171617162
A21: 1.54 | B21: 33.1 | C21: 2.01 | D21: 0.2541254125 | E21: 0.004707109823 | F21: 249489370.6 | G21: 26.39643859 | H21: 20.25 | J21: =INDEX(Integrale!$H$3:$H$502,MATCH('NGC2366'!D21,Integrale!$H$3:$H$502,1)) -> 0.25 | K21: =INDEX(Integrale!$I$3:$I$502,MATCH('NGC2366'!D21,Integrale!$H$3:$H$502,1)) -> 0.0044997288 | L21: =INDEX(Integrale!$H$3:$H$502,MATCH('NGC2366'!D21,Integrale!$H$3:$H$502,1)+1) -> 0.26 | M21: =INDEX(Integrale!$I$3:$I$502,MATCH('NGC2366'!D21,Integrale!$H$3:$H$502,1)+1) -> 0.0050024204 | N21: 0.5874587459 | O21: 0.4125412541
A22: 1.79 | B22: 37.5 | C22: 1.62 | D22: 0.295379538 | E22: 0.007016771583 | F22: 371907601.8 | G22: 29.8930814 | H22: 20.29 | J22: =INDEX(Integrale!$H$3:$H$502,MATCH('NGC2366'!D22,Integrale!$H$3:$H$502,1)) -> 0.29 | K22: =INDEX(Integrale!$I$3:$I$502,MATCH('NGC2366'!D22,Integrale!$H$3:$H$502,1)) -> 0.0066846487 | L22: =INDEX(Integrale!$H$3:$H$502,MATCH('NGC2366'!D22,Integrale!$H$3:$H$502,1)+1) -> 0.3 | M22: =INDEX(Integrale!$I$3:$I$502,MATCH('NGC2366'!D22,Integrale!$H$3:$H$502,1)+1) -> 0.0073020305 | N22: 0.4620462046 | O22: 0.5379537954
A23: 2.02 | B23: 40.5 | C23: 1.68 | D23: 0.3333333333 | E23: 0.009556026467 | F23: 506494880.8 | G23: 32.83912054 | H23: 18.92 | J23: =INDEX(Integrale!$H$3:$H$502,MATCH('NGC2366'!D23,Integrale!$H$3:$H$502,1)) -> 0.33 | K23: =INDEX(Integrale!$I$3:$I$502,MATCH('NGC2366'!D23,Integrale!$H$3:$H$502,1)) -> 0.0093153237 | L23: =INDEX(Integrale!$H$3:$H$502,MATCH('NGC2366'!D23,Integrale!$H$3:$H$502,1)+1) -> 0.34 | M23: =INDEX(Integrale!$I$3:$I$502,MATCH('NGC2366'!D23,Integrale!$H$3:$H$502,1)+1) -> 0.010037432 | N23: 0.6666666667 | O23: 0.3333333333
A24: 2.26 | B24: 42.3 | C24: 1.69 | D24: 0.3729372937 | E24: 0.0125814959 | F24: 666852827.3 | G24: 35.62381701 | H24: 15.78 | J24: =INDEX(Integrale!$H$3:$H$502,MATCH('NGC2366'!D24,Integrale!$H$3:$H$502,1)) -> 0.37 | K24: =INDEX(Integrale!$I$3:$I$502,MATCH('NGC2366'!D24,Integrale!$H$3:$H$502,1)) -> 0.0123431779 | L24: =INDEX(Integrale!$H$3:$H$502,MATCH('NGC2366'!D24,Integrale!$H$3:$H$502,1)+1) -> 0.38 | M24: =INDEX(Integrale!$I$3:$I$502,MATCH('NGC2366'!D24,Integrale!$H$3:$H$502,1)+1) -> 0.0131545302 | N24: 0.7062706271 | O24: 0.2937293729
A25: 2.49 | B25: 45.2 | C25: 1.91 | D25: 0.4108910891 | E25: 0.0157783115 | F25: 836292577.3 | G25: 38.00660874 | H25: 15.91 | J25: =INDEX(Integrale!$H$3:$H$502,MATCH('NGC2366'!D25,Integrale!$H$3:$H$502,1)) -> 0.41 | K25: =INDEX(Integrale!$I$3:$I$502,MATCH('NGC2366'!D25,Integrale!$H$3:$H$502,1)) -> 0.0156997951 | L25: =INDEX(Integrale!$H$3:$H$502,MATCH('NGC2366'!D25,Integrale!$H$3:$H$502,1)+1) -> 0.42 | M25: =INDEX(Integrale!$I$3:$I$502,MATCH('NGC2366'!D25,Integrale!$H$3:$H$502,1)+1) -> 0.0165809236 | N25: 0.9108910891 | O25: 0.08910891089
A26: 2.74 | B26: 47.4 | C26: 1.95 | D26: 0.4521452145 | E26: =N26*K26+O26*M26 -> 0.01950260173 | F26: 1033689889 | G26: 40.28093336 | H26: 15.02 | J26: =INDEX(Integrale!$H$3:$H$502,MATCH('NGC2366'!D26,Integrale!$H$3:$H$502,1)) -> 0.45 | K26: =INDEX(Integrale!$I$3:$I$502,MATCH('NGC2366'!D26,Integrale!$H$3:$H$502,1)) -> 0.0193032886 | L26: =INDEX(Integrale!$H$3:$H$502,MATCH('NGC2366'!D26,Integrale!$H$3:$H$502,1)+1) -> 0.46 | M26: =INDEX(Integrale!$I$3:$I$502,MATCH('NGC2366'!D26,Integrale!$H$3:$H$502,1)+1) -> 0.0202323944 | N26: 0.7854785479 | O26: 0.2145214521
A27: 2.97 | B27: 48.1 | C27: 1.74 | D27: =A27/$C$12 -> 0.4900990099 | E27: =N27*K27+O27*M27 -> 0.02307435284 | F27: =4*$H$12*$E$12*POWER($C$12,3)*E27 -> 1223002221 | G27: =POWER($I$8*F27/A27,0.5) -> 42.08381189 | H27: =ROUND(ABS((B27-G27)/B27)*100,2) -> 12.51 | J27: =INDEX(Integrale!$H$3:$H$502,MATCH('NGC2366'!D27,Integrale!$H$3:$H$502,1)) -> 0.49 | K27: =INDEX(Integrale!$I$3:$I$502,MATCH('NGC2366'!D27,Integrale!$H$3:$H$502,1)) -> 0.0230649017 | L27: =INDEX(Integrale!$H$3:$H$502,MATCH('NGC2366'!D27,Integrale!$H$3:$H$502,1)+1) -> 0.5 | M27: =INDEX(Integrale!$I$3:$I$502,MATCH('NGC2366'!D27,Integrale!$H$3:$H$502,1)+1) -> 0.0240194669 | N27: =(L27-D27)/(L27-J27) -> 0.9900990099 | O27: =(D27-J27)/(L27-J27) -> 0.009900990099
A28: 3.21 | B28: 48.8 | C28: 1.08 | D28: 0.5297029703 | E28: 0.02686673245 | F28: 1424008451 | G28: 43.68008146 | H28: 10.49 | J28: =INDEX(Integrale!$H$3:$H$502,MATCH('NGC2366'!D28,Integrale!$H$3:$H$502,1)) -> 0.52 | K28: =INDEX(Integrale!$I$3:$I$502,MATCH('NGC2366'!D28,Integrale!$H$3:$H$502,1)) -> 0.0259359595 | L28: =INDEX(Integrale!$H$3:$H$502,MATCH('NGC2366'!D28,Integrale!$H$3:$H$502,1)+1) -> 0.53 | M28: =INDEX(Integrale!$I$3:$I$502,MATCH('NGC2366'!D28,Integrale!$H$3:$H$502,1)+1) -> 0.0268952255 | N28: 0.0297029703 | O28: 0.9702970297
A29: 3.44 | B29: 50.7 | C29: 1.55 | D29: 0.5676567657 | E29: 0.03048747459 | F29: 1615917438 | G29: 44.94796511 | H29: 11.35 | J29: =INDEX(Integrale!$H$3:$H$502,MATCH('NGC2366'!D29,Integrale!$H$3:$H$502,1)) -> 0.56 | K29: =INDEX(Integrale!$I$3:$I$502,MATCH('NGC2366'!D29,Integrale!$H$3:$H$502,1)) -> 0.0297618021 | L29: =INDEX(Integrale!$H$3:$H$502,MATCH('NGC2366'!D29,Integrale!$H$3:$H$502,1)+1) -> 0.57 | M29: =INDEX(Integrale!$I$3:$I$502,MATCH('NGC2366'!D29,Integrale!$H$3:$H$502,1)+1) -> 0.0307095554 | N29: 0.2343234323 | O29: 0.7656765677
A30: 3.69 | B30: 52.1 | C30: 2.78 | D30: 0.6089108911 | E30: 0.03433206531 | F30: 1819690997 | G30: 46.05378324 | H30: 11.61 | J30: =INDEX(Integrale!$H$3:$H$502,MATCH('NGC2366'!D30,Integrale!$H$3:$H$502,1)) -> 0.6 | K30: =INDEX(Integrale!$I$3:$I$502,MATCH('NGC2366'!D30,Integrale!$H$3:$H$502,1)) -> 0.0335137772 | L30: =INDEX(Integrale!$H$3:$H$502,MATCH('NGC2366'!D30,Integrale!$H$3:$H$502,1)+1) -> 0.61 | M30: =INDEX(Integrale!$I$3:$I$502,MATCH('NGC2366'!D30,Integrale!$H$3:$H$502,1)+1) -> 0.0344320783 | N30: 0.1089108911 | O30: 0.8910891089
A31: 3.92 | B31: 53 | C31: 2.98 | D31: 0.6468646865 | E31: 0.03772471113 | F31: 1999510270 | G31: 46.83801254 | H31: 11.63 | J31: =INDEX(Integrale!$H$3:$H$502,MATCH('NGC2366'!D31,Integrale!$H$3:$H$502,1)) -> 0.64 | K31: =INDEX(Integrale!$I$3:$I$502,MATCH('NGC2366'!D31,Integrale!$H$3:$H$502,1)) -> 0.037124703 | L31: =INDEX(Integrale!$H$3:$H$502,MATCH('NGC2366'!D31,Integrale!$H$3:$H$502,1)+1) -> 0.65 | M31: =INDEX(Integrale!$I$3:$I$502,MATCH('NGC2366'!D31,Integrale!$H$3:$H$502,1)+1) -> 0.0379987533 | N31: 0.3135313531 | O31: 0.6864686469
A32: 4.16 | B32: 53.7 | C32: 2.39 | D32: 0.6864686469 | E32: 0.041069885 | F32: 2176813405 | G32: 47.43988294 | H32: 11.66 | J32: =INDEX(Integrale!$H$3:$H$502,MATCH('NGC2366'!D32,Integrale!$H$3:$H$502,1)) -> 0.68 | K32: =INDEX(Integrale!$I$3:$I$502,MATCH('NGC2366'!D32,Integrale!$H$3:$H$502,1)) -> 0.040540476 | L32: =INDEX(Integrale!$H$3:$H$502,MATCH('NGC2366'!D32,Integrale!$H$3:$H$502,1)+1) -> 0.69 | M32: =INDEX(Integrale!$I$3:$I$502,MATCH('NGC2366'!D32,Integrale!$H$3:$H$502,1)+1) -> 0.0413588991 | N32: 0.3531353135 | O32: 0.6468646865
A33: 4.4 | B33: 51.2 | C33: 2.21 | D33: 0.7260726073 | E33: 0.04417916096 | F33: 2341613320 | G33: 47.84217597 | H33: 6.56 | J33: =INDEX(Integrale!$H$3:$H$502,MATCH('NGC2366'!D33,Integrale!$H$3:$H$502,1)) -> 0.72 | K33: =INDEX(Integrale!$I$3:$I$502,MATCH('NGC2366'!D33,Integrale!$H$3:$H$502,1)) -> 0.0437207705 | L33: =INDEX(Integrale!$H$3:$H$502,MATCH('NGC2366'!D33,Integrale!$H$3:$H$502,1)+1) -> 0.73 | M33: =INDEX(Integrale!$I$3:$I$502,MATCH('NGC2366'!D33,Integrale!$H$3:$H$502,1)+1) -> 0.04447562 | N33: 0.3927392739 | O33: 0.6072607261
A34: 4.64 | B34: 51.6 | C34: 1.45 | D34: 0.7656765677 | E34: 0.04702845142 | F34: 2492633311 | G34: 48.06731677 | H34: 6.85 | J34: =INDEX(Integrale!$H$3:$H$502,MATCH('NGC2366'!D34,Integrale!$H$3:$H$502,1)) -> 0.76 | K34: =INDEX(Integrale!$I$3:$I$502,MATCH('NGC2366'!D34,Integrale!$H$3:$H$502,1)) -> 0.0466387261 | L34: =INDEX(Integrale!$H$3:$H$502,MATCH('NGC2366'!D34,Integrale!$H$3:$H$502,1)+1) -> 0.77 | M34: =INDEX(Integrale!$I$3:$I$502,MATCH('NGC2366'!D34,Integrale!$H$3:$H$502,1)+1) -> 0.0473252771 | N34: 0.4323432343 | O34: 0.5676567657
A35: 4.87 | B35: 51.5 | C35: 1.84 | D35: 0.803630363 | E35: 0.04950363528 | F35: 2623824655 | G35: 48.13739631 | H35: 6.53 | J35: =INDEX(Integrale!$H$3:$H$502,MATCH('NGC2366'!D35,Integrale!$H$3:$H$502,1)) -> 0.8 | K35: =INDEX(Integrale!$I$3:$I$502,MATCH('NGC2366'!D35,Integrale!$H$3:$H$502,1)) -> 0.0492798642 | L35: =INDEX(Integrale!$H$3:$H$502,MATCH('NGC2366'!D35,Integrale!$H$3:$H$502,1)+1) -> 0.81 | M35: =INDEX(Integrale!$I$3:$I$502,MATCH('NGC2366'!D35,Integrale!$H$3:$H$502,1)+1) -> 0.0498962518 | N35: 0.6369636964 | O35: 0.3630363036
A36: 5.11 | B36: 50.4 | C36: 2.53 | D36: 0.8432343234 | E36: 0.05181732516 | F36: 2746456387 | G36: 48.07901658 | H36: 4.61 | J36: =INDEX(Integrale!$H$3:$H$502,MATCH('NGC2366'!D36,Integrale!$H$3:$H$502,1)) -> 0.84 | K36: =INDEX(Integrale!$I$3:$I$502,MATCH('NGC2366'!D36,Integrale!$H$3:$H$502,1)) -> 0.0516404838 | L36: =INDEX(Integrale!$H$3:$H$502,MATCH('NGC2366'!D36,Integrale!$H$3:$H$502,1)+1) -> 0.85 | M36: =INDEX(Integrale!$I$3:$I$502,MATCH('NGC2366'!D36,Integrale!$H$3:$H$502,1)+1) -> 0.0521872484 | N36: 0.6765676568 | O36: 0.3234323432
A37: 5.35 | B37: 48.5 | C37: 4.6 | D37: 0.8828382838 | E37: 0.05386189249 | F37: 2854823907 | G37: 47.9062795 | H37: 1.22 | J37: =INDEX(Integrale!$H$3:$H$502,MATCH('NGC2366'!D37,Integrale!$H$3:$H$502,1)) -> 0.88 | K37: =INDEX(Integrale!$I$3:$I$502,MATCH('NGC2366'!D37,Integrale!$H$3:$H$502,1)) -> 0.0537257701 | L37: =INDEX(Integrale!$H$3:$H$502,MATCH('NGC2366'!D37,Integrale!$H$3:$H$502,1)+1) -> 0.89 | M37: =INDEX(Integrale!$I$3:$I$502,MATCH('NGC2366'!D37,Integrale!$H$3:$H$502,1)+1) -> 0.0542053641 | N37: 0.7161716172 | O37: 0.2838283828
A38: 5.59 | B38: 50 | C38: 5.91 | D38: 0.9224422442 | E38: 0.05564948611 | F38: 2949571135 | G38: 47.63796553 | H38: 4.72 | J38: =INDEX(Integrale!$H$3:$H$502,MATCH('NGC2366'!D38,Integrale!$H$3:$H$502,1)) -> 0.92 | K38: =INDEX(Integrale!$I$3:$I$502,MATCH('NGC2366'!D38,Integrale!$H$3:$H$502,1)) -> 0.0555478158 | L38: =INDEX(Integrale!$H$3:$H$502,MATCH('NGC2366'!D38,Integrale!$H$3:$H$502,1)+1) -> 0.93 | M38: =INDEX(Integrale!$I$3:$I$502,MATCH('NGC2366'!D38,Integrale!$H$3:$H$502,1)+1) -> 0.0559641145 | N38: 0.7557755776 | O38: 0.2442244224
A39: 5.82 | B39: 49 | C39: 7.42 | D39: 0.9603960396 | E39: 0.05713788312 | F39: 3028460145 | G39: 47.30740342 | H39: 3.45 | J39: =INDEX(Integrale!$H$3:$H$502,MATCH('NGC2366'!D39,Integrale!$H$3:$H$502,1)) -> 0.96 | K39: =INDEX(Integrale!$I$3:$I$502,MATCH('NGC2366'!D39,Integrale!$H$3:$H$502,1)) -> 0.0571237109 | L39: =INDEX(Integrale!$H$3:$H$502,MATCH('NGC2366'!D39,Integrale!$H$3:$H$502,1)+1) -> 0.97 | M39: =INDEX(Integrale!$I$3:$I$502,MATCH('NGC2366'!D39,Integrale!$H$3:$H$502,1)+1) -> 0.0574815594 | N39: 0.9603960396 | O39: 0.0396039604
A40: 6.06 | B40: 49.4 | C40: 5.92 | D40: 1 | E40: 0.0584738086 | F40: 3099267757 | G40: 46.90000721 | H40: 5.06 | J40: =INDEX(Integrale!$H$3:$H$502,MATCH('NGC2366'!D40,Integrale!$H$3:$H$502,1)) -> 1 | K40: =INDEX(Integrale!$I$3:$I$502,MATCH('NGC2366'!D40,Integrale!$H$3:$H$502,1)) -> 0.0584738086 | L40: =INDEX(Integrale!$H$3:$H$502,MATCH('NGC2366'!D40,Integrale!$H$3:$H$502,1)+1) -> 1.01 | M40: =INDEX(Integrale!$I$3:$I$502,MATCH('NGC2366'!D40,Integrale!$H$3:$H$502,1)+1) -> 0.0587786248 | N40: 1 | O40: 0
G41: Erreur moy | H41: =ROUND(AVERAGE(H15:H40),2) -> 14.28
B42: Précision= | C42: =ROUND(MAX(0,100-H41),2) -> 85.72 | D42: %
A44: R | B44: V_Obs | C44: Incer V_Obs | D44: V_TURI | E44: A=(V_obs-V_TURI)^2 | F44: A/Incer V_Obs^2
A45: =A15 -> 0.12 | B45: =B15 -> 4.2 | C45: =C15 -> 3.15 | D45: =ROUND(G15,2) -> 2.37 | E45: =ROUND(POWER((B45-D45),2),2) -> 3.35 | F45: =ROUND(E45/POWER(C45,2),2) -> 0.34
A46: =A16 -> 0.36 | B46: =B16 -> 9.41 | C46: 1.83 | D46: =ROUND(G16,2) -> 6.68 | E46: =ROUND(POWER((B46-D46),2),2) -> 7.45 | F46: =ROUND(E46/POWER(C46,2),2) -> 2.22
A47: 0.59 | B47: 15.3 | C47: 1.37 | D47: 10.84 | E47: 19.89 | F47: 10.6
A48: 0.83 | B48: 18.4 | C48: 1.64 | D48: 15.04 | E48: 11.29 | F48: 4.2
A49: 1.07 | B49: 23.4 | C49: 2.08 | D49: 19.08 | E49: 18.66 | F49: 4.31
A50: 1.31 | B50: 28.1 | C50: 2.46 | D50: 22.93 | E50: 26.73 | F50: 4.42
A51: 1.54 | B51: 33.1 | C51: 2.01 | D51: 26.4 | E51: 44.89 | F51: 11.11
A52: 1.79 | B52: 37.5 | C52: 1.62 | D52: 29.89 | E52: 57.91 | F52: 22.07
A53: 2.02 | B53: 40.5 | C53: 1.68 | D53: 32.84 | E53: 58.68 | F53: 20.79
A54: 2.26 | B54: 42.3 | C54: 1.69 | D54: 35.62 | E54: 44.62 | F54: 15.62
A55: 2.49 | B55: 45.2 | C55: 1.91 | D55: 38.01 | E55: 51.7 | F55: 14.17
A56: 2.74 | B56: 47.4 | C56: 1.95 | D56: 40.28 | E56: 50.69 | F56: 13.33
A57: 2.97 | B57: =B27 -> 48.1 | C57: 1.74 | D57: 42.08 | E57: 36.24 | F57: 11.97
A58: 3.21 | B58: 48.8 | C58: 1.08 | D58: 43.68 | E58: 26.21 | F58: 22.47
A59: 3.44 | B59: 50.7 | C59: 1.55 | D59: 44.95 | E59: 33.06 | F59: 13.76
A60: 3.69 | B60: 52.1 | C60: 2.78 | D60: 46.05 | E60: 36.6 | F60: 4.74
A61: 3.92 | B61: 53 | C61: 2.98 | D61: 46.84 | E61: 37.95 | F61: 4.27
A62: 4.16 | B62: 53.7 | C62: 2.39 | D62: 47.44 | E62: 39.19 | F62: 6.86
A63: 4.4 | B63: 51.2 | C63: 2.21 | D63: 47.84 | E63: 11.29 | F63: 2.31
A64: 4.64 | B64: 51.6 | C64: 1.45 | D64: 48.07 | E64: 12.46 | F64: 5.93
A65: 4.87 | B65: 51.5 | C65: 1.84 | D65: 48.14 | E65: 11.29 | F65: 3.33
A66: 5.11 | B66: 50.4 | C66: 2.53 | D66: 48.08 | E66: 5.38 | F66: 0.84
A67: 5.35 | B67: 48.5 | C67: 4.6 | D67: 47.91 | E67: 0.35 | F67: 0.02
A68: 5.59 | B68: 50 | C68: 5.91 | D68: 47.64 | E68: 5.57 | F68: 0.16
A69: 5.82 | B69: 49 | C69: 7.42 | D69: 47.31 | E69: 2.86 | F69: 0.05
A70: 6.06 | B70: 49.4 | C70: 5.92 | D70: 46.9 | E70: 6.25 | F70: 0.18
E71: X^2/d_f= | F71: =ROUND(SUM(F45:F70)/(COUNT(F45:F70)),2) -> 7.7

Sheet Integrale
H1: u | I1: I(u) = Integrale de 0 à u de ( x^2sech^8(x)dx
H2: 0 | I2: 0
H3: 0.01 | I3: 4.998e-07
H4: 0.02 | I4: 2.9964e-06
H5: 0.03 | I5: 9.477e-06
H6: 0.04 | I6: 2.19098e-05
H7: 0.05 | I7: 4.22345e-05
H8: 0.06 | I8: 7.2353e-05
H9: 0.07 | I9: 0.0001141207
H10: 0.08 | I10: 0.0001693376
H11: 0.09 | I11: 0.0002397401
H12: 0.1 | I12: 0.0003269934
H13: 0.11 | I13: 0.0004326832
H14: 0.12 | I14: 0.0005583096
H15: 0.13 | I15: 0.0007052805
H16: 0.14 | I16: 0.0008749055
H17: 0.15 | I17: 0.0010683906
H18: 0.16 | I18: 0.001286834
H19: 0.17 | I19: 0.001531222
H20: 0.18 | I20: 0.0018024255
H21: 0.19 | I21: 0.0021011974
H22: 0.2 | I22: 0.0024281708
H23: 0.21 | I23: 0.0027838579
H24: 0.22 | I24: 0.0031686489
H25: 0.23 | I25: 0.0035828125
H26: 0.24 | I26: 0.0040264964
H27: 0.25 | I27: 0.0044997288
H28: 0.26 | I28: 0.0050024204
H29: 0.27 | I29: 0.0055343666
H30: 0.28 | I30: 0.006095251
H31: 0.29 | I31: 0.0066846487
H32: 0.3 | I32: 0.0073020305
H33: 0.31 | I33: 0.0079467677
H34: 0.32 | I34: 0.0086181365
H35: 0.33 | I35: 0.0093153237
H36: 0.34 | I36: 0.010037432
H37: 0.35 | I37: 0.0107834863
H38: 0.36 | I38: 0.0115524392
H39: 0.37 | I39: 0.0123431779
H40: 0.38 | I40: 0.0131545302
H41: 0.39 | I41: 0.0139852712
H42: 0.4 | I42: 0.0148341297
H43: 0.41 | I43: 0.0156997951
H44: 0.42 | I44: 0.0165809236
H45: 0.43 | I45: 0.0174761447
H46: 0.44 | I46: 0.0183840679
H47: 0.45 | I47: 0.0193032886
H48: 0.46 | I48: 0.0202323944
H49: 0.47 | I49: 0.0211699709
H50: 0.48 | I50: 0.0221146072
H51: 0.49 | I51: 0.0230649017
H52: 0.5 | I52: 0.0240194669
H53: 0.51 | I53: 0.0249769344
H54: 0.52 | I54: 0.0259359595
H55: 0.53 | I55: 0.0268952255
H56: 0.54 | I56: 0.0278534477
H57: 0.55 | I57: 0.0288093767
H58: 0.56 | I58: 0.0297618021
H59: 0.57 | I59: 0.0307095554
H60: 0.58 | I60: 0.0316515125
H61: 0.59 | I61: 0.0325865959
H62: 0.6 | I62: 0.0335137772
H63: 0.61 | I63: 0.0344320783
H64: 0.62 | I64: 0.0353405729
H65: 0.63 | I65: 0.0362383877
H66: 0.64 | I66: 0.037124703
H67: 0.65 | I67: 0.0379987533
H68: 0.66 | I68: 0.0388598276
H69: 0.67 | I69: 0.0397072693
H70: 0.68 | I70: 0.040540476
H71: 0.69 | I71: 0.0413588991
H72: 0.7 | I72: 0.0421620429
H73: 0.71 | I73: 0.0429494641
H74: 0.72 | I74: 0.0437207705
H75: 0.73 | I75: 0.04447562
H76: 0.74 | I76: 0.0452137189
H77: 0.75 | I77: 0.0459348212
H78: 0.76 | I78: 0.0466387261
H79: 0.77 | I79: 0.0473252771
H80: 0.78 | I80: 0.0479943599
H81: 0.79 | I81: 0.0486459007
H82: 0.8 | I82: 0.0492798642
H83: 0.81 | I83: 0.0498962518
H84: 0.82 | I84: 0.0504950998
H85: 0.83 | I85: 0.0510764772
H86: 0.84 | I86: 0.0516404838
H87: 0.85 | I87: 0.0521872484
H88: 0.86 | I88: 0.0527169267
H89: 0.87 | I89: 0.0532296993
H90: 0.88 | I90: 0.0537257701
H91: 0.89 | I91: 0.0542053641
H92: 0.9 | I92: 0.0546687257
H93: 0.91 | I93: 0.0551161169
H94: 0.92 | I94: 0.0555478158
H95: 0.93 | I95: 0.0559641145
H96: 0.94 | I96: 0.0563653178
H97: 0.95 | I97: 0.0567517415
H98: 0.96 | I98: 0.0571237109
H99: 0.97 | I99: 0.0574815594
H100: 0.98 | I100: 0.0578256274
H101: 0.99 | I101: 0.0581562605
H102: 1 | I102: 0.0584738086
H103: 1.01 | I103: 0.0587786248
H104: 1.02 | I104: 0.059071064
H105: 1.03 | I105: 0.0593514822
H106: 1.04 | I106: 0.0596202355
H107: 1.05 | I107: 0.0598776791
H108: 1.06 | I108: 0.0601241663
H109: 1.07 | I109: 0.0603600483
H110: 1.08 | I110: 0.060585673
H111: 1.09 | I111: 0.0608013846
H112: 1.1 | I112: 0.0610075229
H113: 1.11 | I113: 0.0612044228
H114: 1.12 | I114: 0.0613924139
H115: 1.13 | I115: 0.0615718202
H116: 1.14 | I116: 0.0617429593
H117: 1.15 | I117: 0.0619061425
H118: 1.16 | I118: 0.0620616744
H119: 1.17 | I119: 0.0622098525
H120: 1.18 | I120: 0.0623509673
H121: 1.19 | I121: 0.0624853017
H122: 1.2 | I122: 0.0626131314
H123: 1.21 | I123: 0.0627347243
H124: 1.22 | I124: 0.0628503409
H125: 1.23 | I125: 0.0629602337
H126: 1.24 | I126: 0.0630646479
H127: 1.25 | I127: 0.0631638207
H128: 1.26 | I128: 0.0632579818
H129: 1.27 | I129: 0.0633473531
H130: 1.28 | I130: 0.0634321492
H131: 1.29 | I131: 0.0635125771
H132: 1.3 | I132: 0.0635888365
H133: 1.31 | I133: 0.0636611197
H134: 1.32 | I134: 0.0637296121
H135: 1.33 | I135: 0.0637944919
H136: 1.34 | I136: 0.0638559305
H137: 1.35 | I137: 0.0639140927
H138: 1.36 | I138: 0.0639691366
H139: 1.37 | I139: 0.064021214
H140: 1.38 | I140: 0.0640704704
H141: 1.39 | I141: 0.0641170452
H142: 1.4 | I142: 0.064161072
H143: 1.41 | I143: 0.0642026787
H144: 1.42 | I144: 0.0642419876
H145: 1.43 | I145: 0.0642791157
H146: 1.44 | I146: 0.0643141746
H147: 1.45 | I147: 0.064347271
H148: 1.46 | I148: 0.064378507
H149: 1.47 | I149: 0.0644079795
H150: 1.48 | I150: 0.0644357814
H151: 1.49 | I151: 0.0644620009
H152: 1.5 | I152: 0.0644867222
H153: 1.51 | I153: 0.0645100253
H154: 1.52 | I154: 0.0645319867
H155: 1.53 | I155: 0.0645526787
H156: 1.54 | I156: 0.0645721705
H157: 1.55 | I157: 0.0645905275
H158: 1.56 | I158: 0.0646078121
H159: 1.57 | I159: 0.0646240835
H160: 1.58 | I160: 0.0646393978
H161: 1.59 | I161: 0.0646538084
H162: 1.6 | I162: 0.0646673658
H163: 1.61 | I163: 0.064680118
H164: 1.62 | I164: 0.0646921104
H165: 1.63 | I165: 0.0647033862
H166: 1.64 | I166: 0.0647139861
H167: 1.65 | I167: 0.0647239487
H168: 1.66 | I168: 0.0647333107
H169: 1.67 | I169: 0.0647421067
H170: 1.68 | I170: 0.0647503694
H171: 1.69 | I171: 0.0647581297
H172: 1.7 | I172: 0.064765417
H173: 1.71 | I173: 0.064772259
H174: 1.72 | I174: 0.0647786817
H175: 1.73 | I175: 0.0647847098
H176: 1.74 | I176: 0.0647903667
H177: 1.75 | I177: 0.0647956744
H178: 1.76 | I178: 0.0648006536
H179: 1.77 | I179: 0.064805324
H180: 1.78 | I180: 0.0648097041
H181: 1.79 | I181: 0.0648138112
H182: 1.8 | I182: 0.0648176618
H183: 1.81 | I183: 0.0648212714
H184: 1.82 | I184: 0.0648246547
H185: 1.83 | I185: 0.0648278252
H186: 1.84 | I186: 0.0648307961
H187: 1.85 | I187: 0.0648335795
H188: 1.86 | I188: 0.0648361869
H189: 1.87 | I189: 0.0648386291
H190: 1.88 | I190: 0.0648409162
H191: 1.89 | I191: 0.0648430578
H192: 1.9 | I192: 0.064845063
H193: 1.91 | I193: 0.0648469402
H194: 1.92 | I194: 0.0648486973
H195: 1.93 | I195: 0.0648503418
H196: 1.94 | I196: 0.0648518808
H197: 1.95 | I197: 0.0648533208
H198: 1.96 | I198: 0.0648546681
H199: 1.97 | I199: 0.0648559285
H200: 1.98 | I200: 0.0648571074
... 172 more rows

Sheet Feuil3
